bitfinex-derivatives/quotes_SOLF0:USTF0_20260211
["timestamp","ask_amount","ask_price","bid_price","bid_amount"]
[1770770349741,3.99832127,83.457,83.416,4.02394545]
[1770770350737,10.7901,83.455,83.416,4.02394545]
[1770770350933,14.78842127,83.455,83.416,4.02394545]
[1770770351135,3.99832127,83.454,83.416,4.02394545]
[1770770351730,3.99832127,83.454,83.408,4.02394545]
[1770770352742,3.99832127,83.454,83.421,10.7945]
[1770770353138,3.99832127,83.454,83.408,4.02394545]
[1770770353743,3.99832127,83.445,83.408,4.02394545]
[1770770354743,3.99832127,83.445,83.411,10.7958]
[1770770357439,113.91079673,83.482,83.397,4.02394545]
[1770770357440,3.99832127,83.435,83.397,4.02394545]
[1770770357747,3.99832127,83.429,83.386,4.02394545]
[1770770358744,3.99832127,83.429,83.397,10.7976]
[1770770359243,2.94025471,83.44,83.398,4.02394545]
[1770770360341,3.99832127,83.442,83.398,4.02394545]
[1770770360745,10.7921,83.44,83.4,3.97054641]
[1770770361145,2.94025471,83.45,83.401,3.97054641]
[1770770361349,10.791,83.448,83.408,3.97054641]
[1770770361544,4.07763526,83.454,83.408,3.97054641]
[1770770361746,4.07763526,83.454,83.41,2.94025471]
[1770770361942,4.07763526,83.454,83.411,3.97054641]
[1770770362852,4.07763526,83.454,83.416,3.97054641]
[1770770363351,3.80737054,83.452,83.416,3.97054641]
[1770770364647,11.13079673,83.502,83.42,2.94025471]
[1770770364951,3.80737054,83.488,83.431,3.76481977]
[1770770365156,10.7872,83.479,83.437,3.76481977]
[1770770366644,10.7877,83.475,83.437,3.76481977]
[1770770368148,14.59507054,83.475,83.437,3.76481977]
[1770770368348,3.80737054,83.474,83.437,3.76481977]
[1770770369755,3.80737054,83.467,83.425,3.76481977]
[1770770371059,3.80737054,83.467,83.426,10.7938]
[1770770374966,3.80737054,83.467,83.427,3.76481977]
[1770770376060,3.80737054,83.467,83.428,10.7936]
[1770770376269,10.7876,83.475,83.43,2.94203293]
[1770770376467,3.80737054,83.474,83.431,3.76481977]
[1770770377259,10.7888,83.466,83.431,3.76481977]
[1770770377561,14.59617054,83.466,83.431,3.76481977]
[1770770380368,3.80737054,83.466,83.431,3.76481977]
[1770770383069,3.80737054,83.466,83.432,14.55781977]
[1770770383268,3.80737054,83.466,83.433,3.76481977]
[1770770384969,3.80737054,83.466,83.434,10.7928]
[1770770385567,3.80737054,83.466,83.433,3.76481977]
[1770770386973,10.7889,83.465,83.433,3.76481977]
[1770770388974,3.80737054,83.466,83.433,3.76481977]
[1770770389175,10.7881,83.471,83.433,3.76481977]
[1770770389372,14.59547054,83.471,83.433,3.76481977]
[1770770389765,10.7885,83.468,83.434,14.55761977]
[1770770390374,10.7891,83.463,83.434,3.76481977]
[1770770390575,3.72563902,83.462,83.426,10.7938]
[1770770390775,3.72563902,83.462,83.423,4.12105059]
[1770770391474,14.51503902,83.461,83.424,10.7941]
[1770770391673,3.72563902,83.46,83.424,10.7941]
[1770770394979,3.72563902,83.46,83.425,4.12105059]
[1770770395981,10.7894,83.461,83.425,4.12105059]
[1770770396284,10.7894,83.461,83.42,2.94228457]
[1770770396285,10.7894,83.461,83.428,4.12105059]
[1770770397480,10.7886,83.467,83.428,4.12105059]
[1770770397874,3.72563902,83.471,83.428,4.12105059]
[1770770398784,10.7893,83.462,83.428,4.12105059]
[1770770399584,10.7884,83.469,83.428,4.12105059]
[1770770400383,10.7875,83.476,83.431,4.12105059]
[1770770400784,3.72563902,83.482,83.444,4.12105059]
[1770770400985,3.72563902,83.493,83.444,4.12105059]
[1770770402186,2.94228457,83.49,83.444,4.12105059]
[1770770402386,3.72563902,83.479,83.434,4.12105059]
[1770770402891,6.66792359,83.47,83.437,10.7924]
[1770770403091,3.72563902,83.47,83.437,14.91345059]
[1770770403384,3.72563902,83.479,83.438,4.12105059]
[1770770403588,14.51293902,83.477,83.44,10.792]
[1770770403889,3.72563902,83.476,83.44,10.792]
[1770770405193,10.7876,83.475,83.438,4.12105059]
[1770770405387,3.72563902,83.474,83.438,4.12105059]
[1770770405588,3.72563902,83.474,83.433,10.7929]
[1770770405787,3.72563902,83.465,83.427,4.12105059]
[1770770406394,139.7081,83.503,83.424,10.794]
[1770770406395,3.72563902,83.459,83.424,10.794]
[1770770408788,3.72563902,83.459,83.417,4.12105059]
[1770770408992,3.72563902,83.455,83.417,4.12105059]
[1770770409491,21.5723,83.486,83.406,4.12105059]
[1770770409492,3.72563902,83.445,83.406,4.12105059]
[1770770409689,3.72563902,83.439,83.394,4.12105059]
[1770770410595,3.72563902,83.429,83.381,4.12105059]
[1770770411195,14.52083902,83.416,83.381,4.12105059]
[1770770411406,3.72563902,83.415,83.37,14.92215059]
[1770770411693,10.7967,83.405,83.371,4.12105059]
[1770770412397,14.52093902,83.415,83.381,4.12105059]
[1770770412794,10.794,83.426,83.391,4.12105059]
[1770770415094,3.72563902,83.417,83.377,14.92125059]
[1770770415497,3.72563902,83.417,83.378,4.12105059]
[1770770416299,10.7956,83.413,83.378,4.12105059]
[1770770419596,3.72563902,83.417,83.378,4.12105059]
[1770770423201,3.84106173,83.415,83.378,4.12105059]
[1770770423596,3.84106173,83.415,83.361,3.89460041]
[1770770423902,3.84106173,83.409,83.361,3.89460041]
[1770770424800,3.84106173,83.407,83.361,3.89460041]
[1770770425390,3.84106173,83.404,83.361,3.89460041]
[1770770426701,10.7974,83.399,83.361,3.89460041]
[1770770428397,3.84106173,83.396,83.361,3.89460041]
[1770770428596,3.84106173,83.396,83.353,10.8032]
[1770770429199,3.84106173,83.396,83.35,3.89460041]
[1770770429403,3.84106173,83.394,83.359,10.8025]
[1770770429599,3.84106173,83.394,83.359,14.69710041]
[1770770429800,3.84106173,83.394,83.359,3.89460041]
[1770770432900,10.7969,83.404,83.362,3.89460041]
[1770770433506,10.7975,83.399,83.362,3.89460041]
[1770770433703,14.63856173,83.399,83.362,3.89460041]
[1770770433908,3.84106173,83.398,83.362,3.89460041]
[1770770434207,3.84106173,83.398,83.351,3.89460041]
[1770770434404,10.7977,83.397,83.356,3.89460041]
[1770770434803,3.84106173,83.398,83.356,3.89460041]
[1770770435810,10.7984,83.392,83.356,3.89460041]
[1770770436010,14.63946173,83.392,83.356,3.89460041]
[1770770436215,3.84106173,83.391,83.356,3.89460041]
[1770770437606,3.84106173,83.391,83.358,3.89460041]
[1770770437804,10.7976,83.398,83.358,3.89460041]
[1770770438710,10.7976,83.398,83.361,3.89460041]
[1770770439711,10.7978,83.396,83.361,3.89460041]
[1770770440319,14.63886173,83.396,83.361,3.89460041]
[1770770441818,3.84106173,83.395,83.361,3.89460041]
[1770770444521,3.84106173,83.392,83.361,3.89460041]
[1770770444724,3.84106173,83.389,83.354,10.8032]
[1770770447127,3.84106173,83.389,83.354,14.69780041]
[1770770449929,3.84106173,83.438,83.387,3.89460041]
[1770770450129,3.84106173,83.438,83.391,4.10432267]
[1770770450523,4.03965309,83.429,83.382,125.5]
[1770770450928,4.03965309,83.429,83.385,10.7991]
[1770770452431,4.03965309,83.429,83.393,14.90242267]
[1770770452634,4.03965309,83.454,83.401,4.10432267]
[1770770452826,4.03965309,83.454,83.411,4.10432267]
[1770770453826,4.03965309,83.454,83.411,14.90012267]
[1770770454139,4.03965309,83.454,83.412,4.10432267]
[1770770455927,4.03965309,83.454,83.414,4.10432267]
[1770770456530,35.9,83.493,83.404,137.02]
[1770770456531,4.03965309,83.476,83.421,4.10432267]
[1770770457034,4.03965309,83.474,83.424,10.7941]
[1770770458231,4.03965309,83.449,83.4,2.94690466]
[1770770459634,4.03965309,83.448,83.402,10.7969]
[1770770460136,2.94690466,83.47,83.42,2.94690466]
[1770770460335,2.94690466,83.47,83.411,4.10432267]
[1770770460336,4.03965309,83.469,83.411,4.10432267]
[1770770461135,2.94690466,83.47,83.38,95.68]
[1770770461136,4.03965309,83.465,83.421,4.10432267]
[1770770462039,4.03965309,83.465,83.42,2.94690466]
[1770770462340,4.03965309,83.459,83.406,4.10432267]
[1770770463733,4.03965309,83.45,83.406,4.10432267]
[1770770463929,4.03965309,83.45,83.41,2.94690466]
[1770770466745,4.03965309,83.45,83.411,4.10432267]
[1770770469546,10.791,83.449,83.411,4.10432267]
[1770770470336,14.83065309,83.449,83.411,4.10432267]
[1770770470534,14.83065309,83.449,83.41,2.94690466]
[1770770470535,4.03965309,83.444,83.399,4.10432267]
[1770770471444,4.03965309,83.428,83.383,10.7994]
[1770770472248,10.7941,83.425,83.386,4.10432267]
[1770770473047,10.7941,83.425,83.39,2.94690466]
[1770770475345,4.03965309,83.421,83.386,4.10432267]
[1770770475552,4.03965309,83.421,83.295,36.74910556]
[1770770475553,4.03965309,83.421,83.374,4.10432267]
[1770770476645,10.7958,83.412,83.374,4.10432267]
[1770770477647,4.03965309,83.418,83.374,4.10432267]
[1770770478043,4.03965309,83.409,83.362,4.10432267]
[1770770478748,4.03965309,83.399,83.35,4.10432267]
[1770770479149,4.03965309,83.399,83.35,7.05122733]
[1770770479353,4.03965309,83.393,83.35,7.05122733]
[1770770479853,4.03965309,83.393,83.351,4.10432267]
[1770770480849,4.03965309,83.393,83.352,3.91355041]
[1770770483056,10.7983,83.392,83.352,3.91355041]
[1770770483553,3.85825881,83.391,83.352,3.91355041]
[1770770484853,3.85825881,83.388,83.352,3.91355041]
[1770770485256,10.799,83.387,83.352,3.91355041]
[1770770487750,3.85825881,83.388,83.352,3.91355041]
[1770770492854,95.68,83.428,83.339,3.97361703]
[1770770492855,3.85825881,83.379,83.339,3.97361703]
[1770770493857,3.85825881,83.377,83.339,3.97361703]
[1770770494051,3.85825881,83.377,83.337,10.8053]
[1770770494253,3.85825881,83.377,83.089,146.99642224]
[1770770494254,3.85825881,83.377,83.329,10.8064]
[1770770494957,3.85825881,83.377,83.33,3.97361703]
[1770770495757,10.8013,83.369,83.33,3.97361703]
[1770770496452,14.65955881,83.369,83.33,3.97361703]
[1770770497057,3.85825881,83.368,83.33,3.97361703]
[1770770497554,95.72,83.398,83.317,162.4]
[1770770497555,3.85825881,83.366,83.317,162.4]
[1770770498058,3.85825881,83.366,83.321,3.97361703]
[1770770498850,3.85825881,83.366,83.324,10.8071]
[1770770499656,3.85825881,83.366,83.324,14.78071703]
[1770770499854,3.85825881,83.366,83.33,10.8063]
[1770770500253,3.85825881,83.366,83.331,3.97361703]
[1770770501455,3.85825881,83.364,83.33,10.8063]
[1770770501661,3.85825881,83.364,83.324,10.8071]
[1770770502859,10.8021,83.363,83.324,10.8071]
[1770770503059,3.85825881,83.362,83.32,3.97361703]
[1770770503762,3.85825881,83.362,83.321,10.8074]
[1770770503961,3.85825881,83.362,83.321,14.78101703]
[1770770504163,3.85825881,83.362,83.322,3.97361703]
[1770770504758,3.85825881,83.358,83.322,3.97361703]
[1770770505063,3.85825881,83.358,83.312,3.97361703]
[1770770505761,3.85825881,83.358,83.294,47.0]
[1770770505968,167.9242,83.417,83.287,3.97361703]
[1770770505969,3.85825881,83.339,83.287,3.97361703]
[1770770506662,10.8049,83.342,83.301,3.97361703]
[1770770507668,14.66215881,83.349,83.302,3.97361703]
[1770770507869,3.85825881,83.348,83.302,3.97361703]
[1770770508470,3.85825881,83.344,83.302,3.97361703]
[1770770509869,10.8048,83.342,83.302,3.97361703]
[1770770510266,3.78009698,83.341,83.302,3.97361703]
[1770770511271,3.78009698,83.33,83.292,4.12542508]
[1770770511569,3.78009698,83.329,83.281,4.12542508]
[1770770512661,3.78009698,83.32,83.281,4.12542508]
[1770770513665,3.78009698,83.317,83.269,4.12542508]
[1770770514372,3.78009698,83.317,83.271,4.12542508]
[1770770515874,3.78009698,83.317,83.272,4.12542508]
[1770770518474,21.6052,83.359,83.259,165.96]
[1770770518475,10.8068,83.327,83.281,4.12542508]
[1770770519775,10.8068,83.327,83.28,2.95227022]
[1770770519776,3.78009698,83.324,83.279,10.8129]
[1770770519977,3.78009698,83.324,83.271,4.12542508]
[1770770520171,3.78009698,83.319,83.271,4.12542508]
[1770770520377,10.8072,83.323,83.278,4.12542508]
[1770770520677,10.8072,83.323,83.26,47.0]
[1770770520678,10.8072,83.323,83.281,4.12542508]
[1770770520977,3.78009698,83.319,83.281,4.12542508]
[1770770522079,3.78009698,83.319,83.261,4.12542508]
[1770770522377,2.95227022,83.32,83.261,4.12542508]
[1770770522378,3.78009698,83.31,83.27,10.814]
[1770770522574,3.78009698,83.31,83.261,4.12542508]
[1770770522878,3.78009698,83.294,83.261,4.12542508]
[1770770523769,10.8118,83.288,83.261,4.12542508]
[1770770525980,14.59279698,83.282,83.243,4.12542508]
[1770770526178,3.78009698,83.281,83.231,4.12542508]
[1770770527776,3.78009698,83.271,83.231,4.12542508]
[1770770528176,3.78009698,83.269,83.231,4.12542508]
[1770770529780,10.8145,83.268,83.231,4.12542508]
[1770770529982,3.78009698,83.269,83.231,4.12542508]
[1770770530587,10.8145,83.268,83.231,4.12542508]
[1770770531175,3.78009698,83.268,83.231,4.12542508]
[1770770533284,3.78009698,83.277,83.233,4.12542508]
[1770770533484,3.78009698,83.277,83.24,2.95227022]
[1770770533987,3.78009698,83.277,83.233,4.12542508]
[1770770534684,3.78009698,83.277,83.234,10.8188]
[1770770534883,3.78009698,83.277,83.235,4.12542508]
[1770770536089,3.78009698,83.274,83.235,4.12542508]
[1770770536681,3.78009698,83.274,83.24,10.8179]
[1770770536888,10.8121,83.286,83.241,4.12542508]
[1770770537089,3.78009698,83.285,83.241,4.12542508]
[1770770537886,3.78009698,83.277,83.241,4.12542508]
[1770770539187,3.78009698,83.277,83.242,10.8176]
[1770770539695,10.8141,83.271,83.229,4.12542508]
[1770770539893,10.8141,83.271,83.231,4.12542508]
[1770770540386,14.59845547,83.265,83.231,4.12542508]
[1770770543094,2.95227022,83.28,83.22,7.04676691]
[1770770543095,3.73767473,83.262,83.22,7.04676691]
[1770770543395,3.73767473,83.262,83.221,4.09449669]
[1770770544896,10.8154,83.261,83.221,4.09449669]
[1770770548799,10.8154,83.261,83.222,4.09449669]
[1770770549694,10.8154,83.261,83.225,4.09449669]
[1770770553395,3.73767473,83.257,83.225,4.09449669]
[1770770553803,3.73767473,83.257,83.22,2.95227022]
[1770770554598,10.816,83.256,83.221,10.8204]
[1770770555100,3.73767473,83.257,83.221,10.8204]
[1770770555304,3.73767473,83.257,83.221,14.91489669]
[1770770559008,3.73767473,83.257,83.222,4.09449669]
[1770770560909,3.73767473,83.267,83.231,4.09449669]
[1770770561794,3.73767473,83.267,83.22,2.95634445]
[1770770561795,2.95634445,83.28,83.233,4.09449669]
[1770770562000,3.73767473,83.294,83.251,4.09449669]
[1770770563803,10.8122,83.285,83.251,4.09449669]
[1770770564403,3.73767473,83.291,83.251,4.09449669]
[1770770565711,10.8116,83.289,83.251,4.09449669]
[1770770566509,14.54927473,83.289,83.251,4.09449669]
[1770770568201,10.8123,83.284,83.251,4.09449669]
[1770770572206,21.615,83.322,83.251,4.09449669]
[1770770572207,4.02467658,83.298,83.251,4.09449669]
[1770770572413,4.02467658,83.298,83.261,3.89992747]
[1770770572608,4.02467658,83.308,83.261,3.89992747]
[1770770573816,4.02467658,83.297,83.261,3.89992747]
[1770770574717,10.8109,83.295,83.261,3.89992747]
[1770770575110,14.83557658,83.295,83.261,3.89992747]
[1770770575713,4.02467658,83.295,83.263,10.815]
[1770770577318,4.02467658,83.295,83.261,3.89992747]
[1770770579418,10.8112,83.293,83.261,3.89992747]
[1770770581016,10.8119,83.287,83.261,3.89992747]
[1770770582123,4.02467658,83.303,83.261,3.89992747]
[1770770582615,2.95634445,83.32,83.271,3.89992747]
[1770770582616,10.8092,83.308,83.271,3.89992747]
[1770770584522,4.02467658,83.313,83.271,3.89992747]
[1770770585617,4.02467658,83.313,83.245,14.66408394]
[1770770585618,4.02467658,83.325,83.291,3.89992747]
[1770770588827,10.8067,83.328,83.291,3.89992747]
[1770770589028,4.02467658,83.336,83.293,10.811]
[1770770591517,4.02467658,83.333,83.293,10.811]
[1770770592820,4.02467658,83.33,83.293,10.811]
[1770770594032,4.02467658,83.33,83.298,10.8104]
[1770770595529,4.02467658,83.33,83.294,3.89992747]
[1770770599041,14.83107658,83.33,83.294,3.89992747]
[1770770601639,4.02467658,83.33,83.294,3.89992747]
[1770770604444,3.81344557,83.326,83.29,2.95634445]
[1770770604647,3.81344557,83.326,83.284,3.88733462]
[1770770605743,3.81344557,83.326,83.289,10.8116]
[1770770606046,3.81344557,83.326,83.284,3.88733462]
[1770770606246,3.81344557,83.326,83.252,21.41592957]
[1770770606247,3.81344557,83.318,83.278,10.813]
[1770770607246,3.81344557,83.318,83.283,10.8123]
[1770770608051,3.81344557,83.318,83.288,10.8117]
[1770770609546,3.81344557,83.318,83.282,10.8125]
[1770770611358,3.81344557,83.318,83.281,3.88733462]
[1770770611650,3.81344557,83.317,83.276,10.8133]
[1770770613855,3.81344557,83.317,83.276,14.70063462]
[1770770614559,3.81344557,83.317,83.278,10.8129]
[1770770615450,3.81344557,83.317,83.26,61.66408394]
[1770770615451,3.81344557,83.317,83.275,3.88733462]
[1770770615757,3.81344557,83.317,83.265,10.8147]
[1770770615758,3.81344557,83.317,83.266,3.88733462]
[1770770616759,3.81344557,83.307,83.266,3.88733462]
[1770770617054,3.81344557,83.307,83.273,3.88733462]
[1770770617661,3.81344557,83.318,83.282,3.88733462]
[1770770619662,3.81344557,83.349,83.301,3.88733462]
[1770770619957,3.81344557,83.349,83.31,2.95634445]
[1770770620162,3.81344557,83.349,83.311,3.88733462]
[1770770621363,3.81344557,83.349,83.286,21.41592957]
[1770770621364,3.81344557,83.366,83.322,3.88733462]
[1770770621863,3.81344557,83.377,83.331,3.88733462]
[1770770622157,3.81344557,83.377,83.341,3.88733462]
[1770770623761,10.799,83.387,83.343,3.88733462]
[1770770624071,3.81344557,83.39,83.343,3.88733462]
[1770770624257,3.81344557,83.39,83.351,3.88733462]
[1770770624656,3.81344557,83.386,83.34,6.8368097]
[1770770624853,3.81344557,83.386,83.341,3.88733462]
[1770770627059,3.81344557,83.398,83.346,3.88733462]
[1770770627257,3.81344557,83.398,83.351,3.88733462]
[1770770628461,3.81344557,83.398,83.36,2.94947508]
[1770770628765,3.81344557,83.398,83.361,3.88733462]
[1770770631164,10.7961,83.409,83.361,3.88733462]
[1770770631959,3.8385875,83.412,83.37,6.98629444]
[1770770632164,3.8385875,83.412,83.373,4.03681936]
[1770770632766,3.8385875,83.409,83.373,4.03681936]
[1770770633271,3.8385875,83.409,83.361,4.03681936]
[1770770633981,3.8385875,83.397,83.349,4.03681936]
[1770770634875,3.8385875,83.394,83.349,4.03681936]
[1770770635370,3.8385875,83.394,83.351,4.03681936]
[1770770636871,3.8385875,83.394,83.352,10.8034]
[1770770639273,3.8385875,83.394,83.351,4.03681936]
[1770770639576,3.8385875,83.388,83.34,4.03681936]
[1770770640078,14.6375875,83.387,83.342,4.03681936]
[1770770640374,3.8385875,83.386,83.342,4.03681936]
[1770770643466,3.8385875,83.386,83.344,4.03681936]
[1770770644576,3.8385875,83.384,83.344,4.03681936]
[1770770646180,3.8385875,83.379,83.344,4.03681936]
[1770770647468,3.8385875,83.379,83.346,10.8042]
[1770770651281,3.8385875,83.379,83.338,10.8052]
[1770770651485,124.46,83.404,83.334,4.03681936]
[1770770651486,3.8385875,83.373,83.334,4.03681936]
[1770770651985,10.8015,83.368,83.334,4.03681936]
[1770770652188,3.8385875,83.367,83.334,4.03681936]
[1770770652591,3.8385875,83.365,83.334,4.03681936]
[1770770657793,10.8022,83.362,83.334,4.03681936]
[1770770657992,10.8022,83.362,83.323,4.03681936]
[1770770658694,21.5962,83.394,83.323,4.03681936]
[1770770658695,3.8385875,83.357,83.323,4.03681936]
[1770770660502,3.8385875,83.357,83.296,47.0]
[1770770660503,4.12828654,83.349,83.3,3.79490912]
[1770770660902,4.12828654,83.339,83.3,3.79490912]
[1770770661301,4.12828654,83.339,83.289,3.79490912]
[1770770661506,10.8073,83.323,83.289,3.79490912]
[1770770662505,4.12828654,83.329,83.289,3.79490912]
[1770770664505,10.8055,83.337,83.291,3.74345539]
[1770770664706,10.8055,83.337,83.29,2.94867974]
[1770770664707,3.79408904,83.336,83.293,3.74345539]
[1770770665107,3.79408904,83.328,83.281,3.74345539]
[1770770665596,3.79408904,83.312,83.281,3.74345539]
[1770770666710,21.6053,83.359,83.281,3.74345539]
[1770770666711,10.8071,83.324,83.281,3.74345539]
[1770770667203,3.79408904,83.329,83.283,3.74345539]
[1770770667405,3.79408904,83.34,83.291,3.74345539]
[1770770667801,3.79408904,83.339,83.291,3.74345539]
[1770770668804,3.79408904,83.338,83.295,3.74345539]
[1770770669709,3.79408904,83.338,83.297,10.8106]
[1770770670809,3.79408904,83.334,83.295,3.74345539]
[1770770671105,123.68,83.357,83.295,3.74345539]
[1770770671106,3.79408904,83.329,83.295,3.74345539]
[1770770672705,3.79408904,83.327,83.295,3.74345539]
[1770770674505,3.79408904,83.327,83.286,10.8119]
[1770770674716,10.8066,83.328,83.286,10.8119]
[1770770674717,3.79408904,83.325,83.286,10.8119]
[1770770677615,3.79408904,83.325,83.287,3.74345539]
[1770770678318,3.79408904,83.325,83.268,130.34]
[1770770678319,10.8055,83.337,83.294,3.74345539]
[1770770679606,14.59958904,83.337,83.294,3.74345539]
[1770770679803,10.8059,83.334,83.296,3.74345539]
[1770770684720,10.8042,83.347,83.303,3.74345539]
[1770770684925,167.8812,83.439,83.268,47.0]
[1770770684926,2.95113329,83.37,83.321,3.74345539]
[1770770685124,3.79408904,83.371,83.321,3.74345539]
[1770770686024,3.79408904,83.371,83.331,3.74345539]
[1770770686623,10.8012,83.37,83.331,3.74345539]
[1770770686824,10.8012,83.37,83.334,3.74345539]
[1770770687023,3.79408904,83.371,83.334,3.74345539]
[1770770687528,10.8003,83.377,83.336,3.74345539]
[1770770687721,3.79408904,83.389,83.341,3.74345539]
[1770770688721,3.79408904,83.386,83.345,14.54775539]
[1770770689419,2.95113329,83.38,83.334,10.8058]
[1770770689628,3.79408904,83.379,83.334,10.8058]
[1770770690233,3.79408904,83.379,83.335,4.13854193]
[1770770690924,10.8004,83.376,83.335,4.13854193]
[1770770692026,3.81280951,83.366,83.324,4.13854193]
[1770770692227,3.81280951,83.359,83.324,4.13854193]
[1770770693835,10.803,83.356,83.324,4.13854193]
[1770770694224,14.61620951,83.353,83.311,4.13854193]
[1770770694435,3.81280951,83.352,83.311,4.13854193]
[1770770694835,6.7639428,83.35,83.311,4.13854193]
[1770770695633,3.81280951,83.35,83.311,4.13854193]
[1770770696428,10.8061,83.332,83.311,4.13854193]
[1770770696633,10.8061,83.332,83.293,457.64184045]
[1770770696634,10.8061,83.332,83.294,4.13854193]
[1770770697624,14.61800951,83.339,83.295,4.13854193]
[1770770697825,14.61800951,83.339,83.301,4.13854193]
[1770770698025,3.81280951,83.359,83.301,4.13854193]
[1770770698826,10.8041,83.347,83.301,4.13854193]
[1770770699736,10.8041,83.347,83.303,4.13854193]
[1770770701637,10.8041,83.347,83.306,4.13854193]
[1770770702739,3.81280951,83.359,83.311,4.13854193]
[1770770702740,10.8029,83.357,83.311,4.13854193]
[1770770703139,14.61570951,83.357,83.311,4.13854193]
[1770770703736,14.61570951,83.357,83.319,10.8077]
[1770770703940,14.61570951,83.357,83.319,14.94624193]
[1770770704532,14.61570951,83.357,83.319,4.13854193]
[1770770704737,3.81280951,83.356,83.319,4.13854193]
[1770770706840,3.81280951,83.356,83.31,2.95113329]
[1770770706841,14.61430951,83.368,83.324,4.13854193]
[1770770707144,3.81280951,83.367,83.324,4.13854193]
[1770770708848,3.81280951,83.365,83.325,10.8069]
[1770770709449,3.81280951,83.365,83.326,4.13854193]
[1770770709649,10.8007,83.374,83.331,4.13854193]
[1770770709841,3.81280951,83.373,83.331,4.13854193]
[1770770710247,17.5650428,83.37,83.331,4.13854193]
[1770770713552,10.8018,83.365,83.331,4.13854193]
[1770770715156,10.8027,83.359,83.331,4.13854193]
[1770770715459,3.81280951,83.359,83.319,4.13854193]
[1770770716862,10.8034,83.353,83.319,4.13854193]
[1770770717063,14.61620951,83.353,83.319,4.13854193]
[1770770720960,3.8229981,83.342,83.305,3.87252756]
[1770770721262,3.8229981,83.342,83.301,10.81]
[1770770721765,3.8229981,83.342,83.302,3.87252756]
[1770770722668,10.8049,83.341,83.305,10.8095]
[1770770723563,10.8049,83.341,83.291,168.14]
[1770770723564,4.14204354,83.302,83.275,8.394e-05]
[1770770723760,4.14204354,83.289,83.253,4.13361683]
[1770770724069,4.14204354,83.289,83.241,4.13361683]
[1770770724967,10.8133,83.277,83.241,4.13361683]
[1770770725169,4.14204354,83.276,83.241,4.13361683]
[1770770728672,10.8135,83.275,83.241,4.13361683]
[1770770728866,10.8135,83.275,83.209,95.76]
[1770770728867,2.95113329,83.3,83.251,4.13361683]
[1770770729072,168.0585,83.351,83.21,47.0]
[1770770729073,2.95113329,83.31,83.261,4.13361683]
[1770770729278,2.95113329,83.33,83.275,4.13361683]
[1770770729469,4.14204354,83.329,83.281,4.13361683]
[1770770730578,4.14204354,83.309,83.268,4.13361683]
[1770770732074,2.95113329,83.32,83.268,4.13361683]
[1770770732374,2.95113329,83.32,83.271,4.13361683]
[1770770732671,2.95113329,83.32,83.273,4.13361683]
[1770770733063,4.14204354,83.319,83.273,4.13361683]
[1770770733668,4.14204354,83.317,83.273,4.13361683]
[1770770733873,121.04,83.343,83.26,4.13361683]
[1770770733874,4.14204354,83.309,83.26,4.13361683]
[1770770734271,4.14204354,83.309,83.26,7.08475012]
[1770770734467,4.14204354,83.309,83.261,4.13361683]
[1770770734871,10.8094,83.307,83.261,4.13361683]
[1770770735174,4.14204354,83.309,83.261,4.13361683]
[1770770735370,4.14204354,83.309,83.26,2.95113329]
[1770770735371,4.14204354,83.309,83.262,4.13361683]
[1770770736667,4.14204354,83.309,83.264,10.8149]
[1770770736874,4.14204354,83.309,83.265,4.13361683]
[1770770740185,4.14204354,83.307,83.265,4.13361683]
[1770770740383,4.14204354,83.299,83.23,4.13361683]
[1770770740587,4.14204354,83.299,83.251,4.13361683]
[1770770741686,4.14204354,83.299,83.257,10.8158]
[1770770741884,4.14204354,83.299,83.257,14.94941683]
[1770770742482,4.14204354,83.299,83.26,4.13361683]
[1770770743683,4.14204354,83.299,83.261,10.8152]
[1770770744084,10.8107,83.296,83.26,4.13361683]
[1770770744783,4.14204354,83.299,83.26,4.13361683]
[1770770746086,4.14204354,83.295,83.26,4.13361683]
[1770770747389,4.14204354,83.289,83.247,10.8171]
[1770770750684,4.14204354,83.289,83.244,4.13361683]
[1770770750685,4.08702234,83.266,83.222,3.80185032]
[1770770750885,2.95386046,83.27,83.222,3.80185032]
[1770770751087,4.08702234,83.278,83.222,3.80185032]
[1770770751389,4.08702234,83.278,83.226,3.80185032]
[1770770751390,10.8145,83.267,83.226,3.80185032]
[1770770753491,4.08702234,83.266,83.227,10.8197]
[1770770753881,4.08702234,83.266,83.228,3.80185032]
[1770770755089,4.08702234,83.266,83.229,10.8194]
[1770770755993,4.08702234,83.266,83.228,3.80185032]
[1770770756287,4.08702234,83.266,83.216,3.80185032]
[1770770756492,21.6196,83.304,83.218,3.80185032]
[1770770756493,4.08702234,83.259,83.218,3.80185032]
[1770770757693,10.8157,83.258,83.218,3.80185032]
[1770770757898,14.90272234,83.258,83.218,3.80185032]
[1770770758094,4.08702234,83.257,83.22,3.80185032]
[1770770758299,2.95623591,83.27,83.221,3.80185032]